fUST/lending_fUST_20240924
["ID","MTS","AMOUNT","RATE_DAILY","PERIOD"]
[339027964,1727139403853,-208.390598,0.0003338,14]
[339027965,1727139403882,-208.390598,0.0003338,14]
[339027966,1727139403909,-151.0,0.0003339,14]
[339027967,1727139403934,-151.0,0.0003339,14]
[339027968,1727139403959,-151.0,0.0003339,14]
[339027969,1727139403983,-1000.0,0.000334,16]
[339027970,1727139404007,-151.0,0.00033424,7]
[339027971,1727139404032,-500.0,0.00033424,30]
[339027972,1727139404057,-500.0,0.00033424,7]
[339027973,1727139404082,-373.27,0.00033424,30]
[339027974,1727139404107,-500.0,0.00033424,30]
[339027975,1727139404131,-500.0,0.00033424,30]
[339027976,1727139404156,-500.0,0.00033424,30]
[339027977,1727139404181,-500.0,0.00033424,30]
[339027978,1727139404207,-500.0,0.00033424,30]
[339027979,1727139404231,-500.0,0.00033424,30]
[339027980,1727139404256,-500.0,0.00033424,30]
[339027981,1727139404282,-500.0,0.00033424,30]
[339027982,1727139404307,-200.0,0.00033424,7]
[339027983,1727139404332,-500.0,0.00033424,30]
[339027984,1727139404357,-478.01475374,0.00033424,30]
[339027985,1727139404384,-500.0,0.00033424,30]
[339027986,1727139404409,-500.0,0.00033424,30]
[339027987,1727139404435,-439.9,0.00033424,30]
[339027988,1727139404461,-554.93,0.00033424,30]
[339027989,1727139404486,-500.0,0.00033424,30]
[339027990,1727139404511,-500.0,0.00033424,30]
[339027991,1727139404536,-500.0,0.00033424,30]
[339027992,1727139404560,-196.585212,0.00033424,14]
[339027993,1727139404585,-329.676144,0.00033424,14]
[339027994,1727139404612,-196.585212,0.00033424,14]
[339027995,1727139404641,-151.0,0.00033424,14]
[339027996,1727139404669,-500.0,0.00033424,30]
[339027997,1727139404694,-500.0,0.00033424,30]
[339027998,1727139404721,-9346.11,0.00033424,18]
[339027999,1727139404746,-151.0,0.00033424,14]
[339028000,1727139404771,-446.184492,0.00033424,14]
[339028001,1727139404796,-446.184492,0.00033424,14]
[339028002,1727139404822,-500.0,0.00033424,21]
[339028003,1727139404848,-151.0,0.00033424,14]
[339028004,1727139404873,-151.0,0.00033424,14]
[339028005,1727139404902,-151.0,0.00033461,14]
[339028006,1727139404928,-151.0,0.00033461,14]
[339028007,1727139405084,-151.0,0.00033461,14]
[339028008,1727139405110,-151.0,0.00033551,14]
[339028009,1727139405138,-446.184492,0.00033551,14]
[339028010,1727139405165,-446.184492,0.00033551,14]
[339028011,1727139405191,-151.0,0.00033551,14]
[339028012,1727139405217,-151.0,0.00033551,14]
[339028013,1727139405243,-548.405761,0.00033551,14]
[339028014,1727139405268,-548.405761,0.00033551,14]
[339028015,1727139405294,-208.390598,0.00033551,14]
[339028016,1727139405320,-208.390598,0.00033551,14]
[339028017,1727139405345,-389.94,0.00033561,30]
[339028018,1727139405371,-500.0,0.00033561,7]
[339028019,1727139405398,-373.27,0.00033561,30]
[339028020,1727139405423,-617.72878791,0.00033561,30]
[339028021,1727139405448,-500.0,0.00033561,30]
[339028022,1727139405473,-500.0,0.00033561,30]
[339028023,1727139405499,-500.0,0.00033561,30]
[339028024,1727139405524,-500.0,0.00033561,30]
[339028025,1727139405549,-500.0,0.00033561,30]
[339028026,1727139405576,-500.0,0.00033561,30]
[339028027,1727139405602,-288.52,0.00033561,30]
[339028028,1727139405628,-200.0,0.00033561,7]
[339028029,1727139405653,-500.0,0.00033561,30]
[339028030,1727139405678,-500.0,0.00033561,30]
[339028031,1727139405704,-500.0,0.00033561,30]
[339028032,1727139405730,-554.93,0.00033561,30]
[339028033,1727139405755,-500.0,0.00033561,30]
[339028034,1727139405780,-500.0,0.00033561,30]
[339028035,1727139405804,-151.0,0.00033561,14]
[339028036,1727139405829,-275.46,0.00033561,30]
[339028037,1727139405855,-196.853235,0.00033561,14]
[339028038,1727139405881,-196.853235,0.00033561,14]
[339028039,1727139405911,-500.0,0.00033561,30]
[339028040,1727139405937,-500.0,0.00033561,30]
[339028041,1727139405963,-151.0,0.00033561,14]
[339028042,1727139405989,-151.0,0.00033561,14]
[339028043,1727139406014,-539.696006,0.00033561,14]
[339028044,1727139406040,-539.696006,0.00033561,14]
[339028045,1727139406066,-9346.11,0.00033561,18]
[339028046,1727139406092,-500.0,0.00033561,21]
[339028047,1727139406118,-500.0,0.00033698,7]
[339028048,1727139406144,-373.27,0.00033698,30]
[339028049,1727139406168,-501.69922479,0.00033698,30]
[339028050,1727139406193,-641.1,0.00033698,30]
[339028051,1727139406217,-500.0,0.00033698,30]
[339028052,1727139406241,-500.0,0.00033698,30]
[339028053,1727139406267,-500.0,0.00033698,30]
[339028054,1727139406292,-500.0,0.00033698,30]
[339028055,1727139406317,-160.46941989,0.00033698,7]
[339028056,1727139406342,-500.0,0.00033698,30]
[339028057,1727139406367,-500.0,0.00033698,30]
[339028058,1727139406393,-500.0,0.00033698,30]
[339028059,1727139406419,-554.93,0.00033698,30]
[339028060,1727139406444,-500.0,0.00033698,30]
[339028061,1727139406470,-500.0,0.00033698,30]
[339028062,1727139406497,-500.0,0.00033698,30]
[339028063,1727139406522,-500.0,0.00033698,30]
[339028064,1727139406548,-9346.11,0.00033698,18]
[339028065,1727139406575,-500.0,0.00033698,21]
[339028066,1727139406600,-1000.0,0.00033698,120]
[339028067,1727139406626,-151.0,0.00033815,7]
[339028068,1727139406650,-151.0,0.00033815,14]
[339028069,1727139406675,-151.0,0.00033815,14]
[339028070,1727139406700,-151.0,0.00033815,14]
[339028071,1727139406726,-151.0,0.00033825,14]
[339028072,1727139406751,-446.184492,0.00033825,14]
[339028073,1727139406775,-446.184492,0.00033825,14]
[339028074,1727139406800,-151.0,0.00033825,14]
[339028075,1727139406826,-231.076788,0.00033825,14]
[339028076,1727139406851,-548.405761,0.00033825,14]
[339028077,1727139406876,-548.405761,0.00033825,14]
[339028078,1727139406903,-208.390598,0.00033825,14]
[339028079,1727139406928,-208.390598,0.00033825,14]
[339028080,1727139406953,-278.66243764,0.00033835,7]
[339028081,1727139406977,-373.27,0.00033835,30]
[339028082,1727139407002,-518.89069689,0.00033835,30]
[339028083,1727139407026,-500.0,0.00033835,30]
[339028084,1727139407050,-602.70318848,0.00033835,30]
[339028085,1727139407075,-638.0528721,0.00033835,30]
[339028086,1727139407100,-500.0,0.00033835,30]
[339028087,1727139407124,-500.0,0.00033835,30]
[339028088,1727139407150,-500.0,0.00033835,30]
[339028089,1727139407175,-554.93,0.00033835,30]
[339028090,1727139407199,-500.0,0.00033835,30]
[339028091,1727139407224,-500.0,0.00033835,30]
[339028092,1727139407248,-329.676144,0.00033835,14]
[339028093,1727139407273,-196.585212,0.00033835,14]
[339028094,1727139407298,-329.676152,0.00033835,14]
[339028095,1727139407322,-196.585206,0.00033835,14]
[339028096,1727139407347,-151.0,0.00033835,14]
[339028097,1727139407371,-151.0,0.00033835,14]
[339028098,1727139407397,-151.0,0.00033835,14]
[339028099,1727139407422,-6638.265851,0.00033835,14]
[339028100,1727139407448,-500.0,0.00033835,30]
[339028101,1727139407472,-500.0,0.00033835,30]
[339028102,1727139407498,-9346.11,0.00033835,18]
[339028103,1727139407523,-500.0,0.00033835,21]
[339028104,1727139407548,-1000.0,0.000339,16]
[339028105,1727139407572,-151.0,0.00033932,7]
[339028106,1727139407597,-373.27,0.00033972,30]
[339028107,1727139407621,-500.0,0.00033972,30]
[339028108,1727139407647,-500.0,0.00033972,30]
[339028109,1727139407671,-500.0,0.00033972,30]
[339028110,1727139407696,-500.0,0.00033972,30]
[339028111,1727139407829,-554.93,0.00033972,30]
[339028112,1727139407855,-500.0,0.00033972,30]
[339028113,1727139407882,-500.0,0.00033972,30]
[339028114,1727139407911,-500.0,0.00033972,30]
[339028115,1727139407936,-362.23,0.00033972,30]
[339028116,1727139407963,-9346.11,0.00033972,18]
[339028117,1727139407989,-500.0,0.00033972,21]
[339028118,1727139408014,-548.405761,0.00033972,14]
[339028119,1727139408039,-548.405761,0.00033972,14]
[339028120,1727139408064,-208.390598,0.00033972,14]
[339028121,1727139408090,-208.390598,0.00033972,14]
[339028122,1727139408115,-151.0,0.00034109,14]
[339028123,1727139408140,-151.0,0.00034109,14]
[339028124,1727139408165,-151.0,0.00034109,14]
[339028125,1727139408189,-373.27,0.00034109,30]
[339028126,1727139408214,-500.0,0.00034109,30]
[339028127,1727139408240,-500.0,0.00034109,30]
[339028128,1727139408264,-500.0,0.00034109,30]
[339028129,1727139408289,-500.0,0.00034109,30]
[339028130,1727139408314,-554.93,0.00034109,30]
[339028131,1727139408339,-500.0,0.00034109,30]
[339028132,1727139408363,-500.0,0.00034109,30]
[339028133,1727139408390,-151.0,0.00034109,14]
[339028134,1727139408415,-196.853235,0.00034109,14]
[339028135,1727139408440,-196.853235,0.00034109,14]
[339028136,1727139408468,-151.0,0.00034109,14]
[339028137,1727139408495,-500.0,0.00034109,30]
[339028138,1727139408520,-247.934056,0.00034109,14]
[339028139,1727139408545,-151.0,0.00034109,14]
[339028140,1727139408571,-539.696006,0.00034109,14]
[339028141,1727139408596,-539.696006,0.00034109,14]
[339028142,1727139408622,-9346.11,0.00034109,18]
[339028143,1727139408649,-500.0,0.00034109,21]
[339028144,1727139408674,-373.27,0.00034246,30]
[339028145,1727139408699,-500.0,0.00034246,30]
[339028146,1727139408723,-500.0,0.00034246,30]
[339028147,1727139408749,-500.0,0.00034246,30]
[339028148,1727139408773,-500.0,0.00034246,30]
[339028149,1727139408800,-554.93,0.00034246,30]
[339028150,1727139408825,-222.02798911,0.00034246,30]
[339028151,1727139408850,-500.0,0.00034246,30]
[339028152,1727139408876,-500.0,0.00034246,30]
[339028153,1727139408904,-1000.0,0.00034246,99]
[339028154,1727139408928,-1000.0,0.00034246,99]
[339028155,1727139408954,-1000.0,0.00034246,99]
[339028156,1727139408979,-1000.0,0.00034246,99]
[339028157,1727139409003,-1000.0,0.00034246,99]
[339028158,1727139409028,-1000.0,0.00034246,99]
[339028159,1727139409052,-1000.0,0.00034246,99]
[339028160,1727139409077,-1000.0,0.00034246,99]
[339028161,1727139409102,-1000.0,0.00034246,99]
[339028162,1727139409128,-1000.0,0.00034246,99]
[339028163,1727139409153,-1000.0,0.00034246,99]
[339028164,1727139409180,-9346.11,0.00034246,18]
[339028165,1727139409204,-151.0,0.00034246,14]
[339028166,1727139409230,-446.184492,0.00034246,14]
[339028167,1727139409255,-446.184492,0.00034246,14]
[339028168,1727139409280,-500.0,0.00034246,21]
[339028169,1727139409305,-151.0,0.00034246,14]
[339028170,1727139409330,-373.27,0.00034383,30]
[339028171,1727139409355,-500.0,0.00034383,30]
[339028172,1727139409381,-500.0,0.00034383,30]
[339028173,1727139409406,-500.0,0.00034383,30]
[339028174,1727139409432,-500.0,0.00034383,30]
[339028175,1727139409458,-554.93,0.00034383,30]
[339028176,1727139409483,-500.0,0.00034383,30]
[339028177,1727139409511,-500.0,0.00034383,30]
[339028178,1727139409536,-330.9284376,0.00034383,99]
[339028179,1727139409563,-9346.11,0.00034383,18]
[339028180,1727139409588,-500.0,0.00034383,21]
[339028181,1727139409613,-1000.0,0.000344,16]
[339028182,1727139409637,-151.0,0.0003452,14]
[339028183,1727139409662,-151.0,0.0003452,14]
[339028184,1727139409686,-151.0,0.0003452,14]
[339028185,1727139409710,-373.27,0.0003452,30]
[339028186,1727139409735,-500.0,0.0003452,30]
[339028187,1727139409761,-500.0,0.0003452,30]
[339028188,1727139409786,-500.0,0.0003452,30]
[339028189,1727139409810,-500.0,0.0003452,30]
[339028190,1727139409836,-554.93,0.0003452,30]
[339028191,1727139409860,-500.0,0.0003452,30]
[339028192,1727139409885,-151.0,0.0003452,14]
[339028193,1727139409912,-151.0,0.0003452,14]
[339028194,1727139409937,-6638.265851,0.0003452,14]
[339028195,1727139409966,-500.0,0.0003452,30]
[339028196,1727139409993,-9346.11,0.0003452,18]
[339028197,1727139410019,-395.52,0.0003452,21]
[339028198,1727139410044,-548.405761,0.0003452,14]
[339028199,1727139410069,-548.405765,0.0003452,14]
[339028200,1727139410094,-208.390598,0.0003452,14]
[339028201,1727139410119,-208.390608,0.0003452,14]
[339028202,1727139410147,-373.27,0.00034657,30]
[339028203,1727139410172,-500.0,0.00034657,30]
[339028204,1727139410199,-537.84465568,0.00034657,30]
[339028205,1727139410224,-500.0,0.00034657,30]
[339028206,1727139410249,-500.0,0.00034657,30]
[339028207,1727139410273,-554.93,0.00034657,30]
[339028208,1727139410298,-500.0,0.00034657,30]
[339028209,1727139410323,-151.0,0.00034657,14]
[339028210,1727139410350,-500.0,0.00034657,30]
[339028211,1727139410376,-9346.11,0.00034657,18]
[339028212,1727139410411,-373.27,0.00034794,30]
[339028213,1727139410435,-500.0,0.00034794,30]
[339028214,1727139410460,-593.51,0.00034794,30]
[339028215,1727139410583,-500.0,0.00034794,30]
[339028216,1727139410616,-554.93,0.00034794,30]
[339028217,1727139410645,-500.0,0.00034794,30]
[339028218,1727139410672,-500.0,0.00034794,30]
[339028219,1727139410697,-151.0,0.00034794,14]
[339028220,1727139410722,-539.696006,0.00034794,14]
[339028221,1727139410747,-539.696006,0.00034794,14]
[339028222,1727139410774,-9346.11,0.00034794,18]
[339028223,1727139410799,-261.930875,0.00034889,14]
[339028224,1727139410824,-446.184492,0.00034889,14]
[339028225,1727139410850,-446.184482,0.00034889,14]
[339028226,1727139410875,-151.0,0.00034889,14]
[339028227,1727139410907,-5000.0,0.00034889,7]
[339028228,1727139410931,-1000.0,0.000349,16]
[339028229,1727139410956,-265.0,0.0003491,31]
[339028230,1727139410980,-373.27,0.00034931,30]
[339028231,1727139411005,-500.0,0.00034931,30]
[339028232,1727139411031,-500.0,0.00034931,30]
[339028233,1727139411056,-554.93,0.00034931,30]
[339028234,1727139411081,-500.0,0.00034931,30]
[339028235,1727139411108,-500.0,0.00034931,30]
[339028236,1727139411137,-1913.69736318,0.00034931,18]
[339028237,1727139411518,169.33411738,0.00021918,2]
[339028238,1727139443910,-500.0,0.00032876,30]
[339028239,1727139443941,-500.0,0.00032876,7]
[339028240,1727139443972,-500.0,0.00032876,30]
[339028241,1727139443998,-500.0,0.00032876,30]
[339028242,1727139444026,-500.0,0.00032876,30]
[339028243,1727139444052,-500.0,0.00032876,30]
[339028244,1727139444079,-500.0,0.00032876,30]
[339028245,1727139444107,-500.0,0.00032876,30]
[339028246,1727139444133,-500.0,0.00032876,30]
[339028247,1727139444160,-497.40380281,0.00032876,30]
[339028248,1727139444188,-500.0,0.00033013,30]
[339028249,1727139444217,-3970.25547393,0.0003305,120]
[339028250,1727139444243,-151.0,0.0003313,14]
[339028251,1727139444269,-151.0,0.0003313,14]
[339028252,1727139444295,-151.0,0.0003313,14]
[339028253,1727139444322,-151.0,0.0003313,14]
[339028254,1727139444348,-151.0,0.0003313,14]
[339028255,1727139444374,-5974.439266,0.0003313,14]
[339028256,1727139444401,-151.0,0.0003313,14]
[339028257,1727139444440,-5974.439266,0.0003313,14]
[339028258,1727139444467,-151.0,0.0003313,14]
[339028259,1727139444494,-151.0,0.0003314,14]
[339028260,1727139444522,-151.0,0.0003314,14]
[339028261,1727139444702,-151.0,0.0003314,14]
[339028262,1727139444734,-5974.439266,0.0003314,14]
[339028263,1727139444760,-151.0,0.0003314,14]
[339028264,1727139444788,-5974.439266,0.0003314,14]
[339028265,1727139444814,-286.451634,0.0003314,14]
[339028266,1727139444842,-500.0,0.0003315,30]
[339028267,1727139444867,-151.0,0.0003321,14]
[339028268,1727139444893,-151.0,0.0003321,14]
[339028269,1727139444931,-5974.439266,0.0003321,14]
[339028270,1727139444959,-151.0,0.0003321,14]
[339028271,1727139444985,-5974.439266,0.0003321,14]
[339028272,1727139445011,-151.0,0.00033277,14]
[339028273,1727139445036,-151.0,0.00033277,14]
[339028274,1727139445062,-5974.439266,0.00033277,14]
[339028275,1727139445088,-151.0,0.00033277,14]
[339028276,1727139445114,-5974.439266,0.00033277,14]
[339028277,1727139445142,-500.0,0.00033287,30]
[339028278,1727139445169,-151.0,0.0003337,14]
[339028279,1727139445195,-151.0,0.0003337,14]
[339028280,1727139445222,-5974.439266,0.0003337,14]
[339028281,1727139445248,-151.0,0.0003337,14]
[339028282,1727139445274,-5974.439266,0.0003337,14]
[339028283,1727139445304,-1286.98473416,0.0003338,15]
[339028284,1727139445329,-151.0,0.0003338,14]
[339028285,1727139445356,-151.0,0.0003338,14]
[339028286,1727139445382,-5974.439266,0.0003338,14]
[339028287,1727139445410,-151.0,0.0003338,14]
[339028288,1727139445435,-5974.439266,0.0003338,14]
[339028289,1727139445465,-500.0,0.00033424,30]
[339028290,1727139445493,-151.0,0.00033551,14]
[339028291,1727139445520,-5974.439266,0.00033551,14]
[339028292,1727139445546,-151.0,0.00033551,14]
[339028293,1727139445572,-5974.439266,0.00033551,14]
[339028294,1727139445600,-500.0,0.00033561,30]
[339028295,1727139445626,-500.0,0.00033698,30]
[339028296,1727139445652,-151.0,0.00033825,14]
[339028297,1727139445682,-5974.439266,0.00033825,14]
[339028298,1727139445710,-151.0,0.00033825,14]
[339028299,1727139445739,-5974.439266,0.00033825,14]
[339028300,1727139445767,-445.6771198,0.00033835,30]
[339028301,1727139445794,-151.0,0.00033972,14]
[339028302,1727139445820,-5974.439266,0.00033972,14]
[339028303,1727139445845,-249.085296,0.00033972,14]
[339028304,1727139445872,-5974.439266,0.00033972,14]
[339028305,1727139445899,-151.0,0.0003452,14]
[339028306,1727139445935,-5974.439266,0.0003452,14]
[339028307,1727139445960,-5974.439263,0.0003452,14]
[339028308,1727139445987,-7432.41263682,0.00034931,18]
[339028309,1727139446013,-5000.0,0.00035,40]
[339028310,1727139446040,-373.27,0.00035068,30]
[339028311,1727139446066,-500.0,0.00035068,30]
[339028312,1727139446091,-554.93,0.00035068,30]
[339028313,1727139446116,-220.03161506,0.00035068,30]
[339028314,1727139446141,-151.0,0.00035068,14]
[339028315,1727139446169,-221.073729,0.00035068,14]
[339028316,1727139446196,-9346.11,0.00035068,18]
[339028317,1727139446221,-373.27,0.00035205,30]
[339028318,1727139446247,-500.0,0.00035205,30]
[339028319,1727139446272,-554.93,0.00035205,30]
[339028320,1727139446299,-151.0,0.00035205,14]
[339028321,1727139446326,-9346.11,0.00035205,18]
[339028322,1727139446352,-151.0,0.0003525,14]
[339028323,1727139446379,-539.696006,0.0003525,14]
[339028324,1727139446410,-539.696006,0.0003525,14]
[339028325,1727139446438,-373.27,0.00035342,30]
[339028326,1727139446465,-445.02274658,0.00035342,30]
[339028327,1727139446492,-554.93,0.00035342,30]
[339028328,1727139446520,-9346.11,0.00035342,18]
[339028329,1727139446547,-373.27,0.00035479,30]
[339028330,1727139446573,-554.93,0.00035479,30]
[339028331,1727139446601,-9346.11,0.00035479,18]
[339028332,1727139446628,-373.27,0.00035616,30]
[339028333,1727139446654,-554.93,0.00035616,30]
[339028334,1727139446682,-9346.11,0.00035616,18]
[339028335,1727139446708,-188.960512,0.00035616,120]
[339028336,1727139446734,-1698.31,0.000357,14]
[339028337,1727139446759,-4152.98,0.000357,14]
[339028338,1727139446799,-1109.95,0.000357,14]
[339028339,1727139446826,-150.112233,0.000357,8]
[339028340,1727139446853,-18777.27733562,0.000357,30]
[339028341,1727139446878,-151.0,0.000357,14]
[339028342,1727139446904,-373.27,0.00035753,30]
[339028343,1727139446935,-554.93,0.00035753,30]
[339028344,1727139446962,-9346.11,0.00035753,18]
[339028345,1727139446989,-373.27,0.0003589,30]
[339028346,1727139447023,-554.93,0.0003589,30]
[339028347,1727139447049,-151.0,0.0003589,14]
[339028348,1727139447075,-151.0,0.0003589,14]
[339028349,1727139447102,-539.696006,0.0003589,14]
[339028350,1727139447128,-539.696006,0.0003589,14]
[339028351,1727139447156,-9346.11,0.0003589,18]
[339028352,1727139447181,-373.35436035,0.00036027,30]
[339028353,1727139447207,-555.07091248,0.00036027,30]
[339028354,1727139447234,-9346.29984643,0.00036027,18]
[339028355,1727139447261,-153.0,0.00036657,120]
[339028356,1727139447287,-153.0,0.00036657,120]
[339028357,1727139447312,-600.0,0.00036734,120]
[339028358,1727139447473,-1000.0,0.00037,120]
[339028359,1727139447504,-150.0,0.00037488,7]
[339028360,1727139447531,-3200.0,0.00037488,7]
[339028361,1727139447556,-300.0,0.00037488,7]
[339028362,1727139447582,-152.4214944,0.00037857,23]
[339028363,1727139447609,-500.0,0.00038164,10]
[339028364,1727139447635,-151.0,0.0003825,14]
[339028365,1727139447665,-1698.31,0.000384,14]
[339028366,1727139447690,-4152.98,0.000384,14]
[339028367,1727139447715,-1109.95,0.000384,14]
[339028368,1727139447741,-159.0,0.00038663,14]
[339028369,1727139447767,-12660.0,0.00039,120]
[339028370,1727139447792,-224.746888,0.00039,14]
[339028371,1727139447817,-539.696006,0.00039,14]
[339028372,1727139447843,-539.696006,0.00039,14]
[339028373,1727139447869,-151.0,0.00039808,14]
[339028374,1727139447895,-500.0,0.00039808,10]
[339028375,1727139447925,-2402.0,0.0004,120]
[339028376,1727139447961,-337.23025367,0.0004,120]
[339028377,1727139447986,-2500.0,0.0004,120]
[339028378,1727139448012,-23332.51885626,0.000405,60]
[339028379,1727139448039,-329.48268631,0.00040597,28]
[339028380,1727139448066,-159.0,0.00041079,14]
[339028381,1727139448091,-500.0,0.00041095,30]
[339028382,1727139448117,-1698.31,0.000413,14]
[339028383,1727139448142,-4152.98,0.000413,14]
[339028384,1727139448168,-1109.95,0.000413,14]
[339028385,1727139448193,-159.0,0.00041425,90]
[339028386,1727139448219,-500.0,0.00041452,30]
[339028387,1727139448246,-97318.8638123,0.000415,7]
[339028388,1727139448272,-151.0,0.000415,120]
[339028389,1727139448298,-200.351894,0.000415,120]
[339028390,1727139448324,-539.696006,0.000415,120]
[339028391,1727139448350,-539.696006,0.000415,120]
[339028392,1727139448375,-758.0,0.000418,120]
[339028393,1727139448401,-329.48268631,0.000419,28]
[339028394,1727139448428,-171128.18407571,0.00042,30]
[339028396,1727139459830,-500.0,0.00032876,30]
[339028397,1727139459856,-500.0,0.00032876,30]
[339028398,1727139459881,-500.0,0.00032876,30]
[339028399,1727139459906,-500.0,0.00033013,30]
[339028400,1727139459939,-151.0,0.00033551,14]
[339028401,1727139459970,-643.49236708,0.00042,61]
[339028402,1727139459999,-170.77526741,0.00042,61]
[339028403,1727139460024,-597034.73236551,0.00042,30]
[339028404,1727139469858,-151.0,0.00033551,14]
[339028405,1727139469889,-599849.0,0.00042,30]
[339028406,1727139477141,-151.0,0.00033551,14]
[339028407,1727139477166,-2800.52,0.000336,14]
[339028408,1727139477192,-748.48,0.000336,14]
[339028409,1727139477217,-1145.24,0.000336,14]
[339028410,1727139477246,-500.0,0.00038164,10]
[339028411,1727139477272,-748.48,0.000383,14]
[339028412,1727139477298,-2800.52,0.000383,14]
[339028413,1727139477323,-1145.24,0.000383,14]
[339028414,1727139477350,-500.0,0.00039808,10]
[339028415,1727139477375,-589460.52,0.00042,30]
[339028416,1727139484768,-500.0,0.00032876,30]
[339028417,1727139484795,-500.0,0.00032876,30]
[339028418,1727139484823,-154.68,0.000336,14]
[339028419,1727139484854,-514.1858523,0.00041223,10]
[339028420,1727139484880,-530.00422375,0.00041452,30]
[339028421,1727139484906,-1597801.12992395,0.00042,30]
[339028422,1727139491127,-151.0,0.00033551,14]
[339028423,1727139491158,-1599849.0,0.00042,30]
[339028673,1727140030151,-405.543714,0.00027397,2]
[339028674,1727140030173,-160.223528,0.00028212,2]
[339028675,1727140030194,-217.05090219,0.00028438,2]
[339028677,1727140043105,-77.02452651,0.00028438,2]
[339028678,1727140043140,-387.64887847,0.00028607,2]
[339028680,1727140049113,-171.62824723,0.00028607,2]
[339028681,1727140049136,-762.02808747,0.00028879,2]
[339028683,1727140052177,-2482.33832913,0.00028879,2]
[339028684,1727140052197,-412.9541904,0.00028961,2]
[339028685,1727140052219,-139.31479798,0.00029398,2]
[339028823,1727140231773,-828.20825659,0.0002802,2]
[339028832,1727140239752,-113.81883941,0.0002802,2]
[339028833,1727140239762,-942.027096,0.00028705,2]
[339028834,1727140239771,-300.0,0.00029078,2]
[339028835,1727140239781,-500.0,0.00029079,2]
[339028836,1727140239790,-500.0,0.00029079,2]
[339028837,1727140239800,-200.0,0.00029079,2]
[339028838,1727140239809,-24900.0,0.0002908,2]
[339028839,1727140239818,-154.06709926,0.00029251,10]
[339028840,1727140239827,-151.34866798,0.00029339,2]
[339028841,1727140239836,-942.027096,0.0002939,2]
[339028842,1727140239846,-329.48268634,0.00031887,2]
[339028843,1727140239855,-420.0,0.00031986,2]
[339028844,1727140239864,-24714.61760568,0.00032866,4]
[339028845,1727140239876,-332.38819351,0.00032866,4]
[339028870,1727140242968,-39.75743155,0.00032866,4]
[339028983,1727140245823,-29.94331598,0.00032866,4]
[339028984,1727140245849,-7735.08123849,0.00032866,4]
[339029040,1727140859555,500.0,0.00022,10]
[339029044,1727140904644,501.3,0.00022,5]
[339029069,1727141132128,-154.06709926,0.00024,2]
[339029070,1727141132149,-302.39527296,0.00024,2]
[339029071,1727141132169,-302.39527296,0.0002424,2]
[339029072,1727141132190,-302.39527296,0.0002448,2]
[339029073,1727141132212,-302.39527296,0.0002472,2]
[339029074,1727141132232,-302.39527296,0.0002496,2]
[339029075,1727141132256,-453.59290944,0.000252,4]
[339029076,1727141132278,-453.59290944,0.0002544,4]
[339029077,1727141132300,-153.57335677,0.0002568,4]
[339029111,1727141226104,-300.01955267,0.0002568,4]
[339029112,1727141226127,-453.59290944,0.0002592,4]